fUSD/lending_fUSD_20260326
["ID","MTS","AMOUNT","RATE_DAILY","PERIOD"]
[418908234,1774527394647,500.0,8.183e-05,2]
[418908235,1774527394677,500.0,8.183e-05,2]
[418908236,1774527394708,343.66471444,8.183e-05,2]
[418908237,1774527394741,996.0245725,8.183e-05,2]
[418908238,1774527394770,357.97414989,8.183e-05,2]
[418908239,1774527394807,343.57895777,8.183e-05,2]
[418908240,1774527394843,294.9790116,8.183e-05,2]
[418908241,1774527397001,-701.0455609,8.183e-05,2]
[418908242,1774527397030,-500.0,8.183e-05,2]
[418908243,1774527397059,-500.0,8.183e-05,2]
[418908244,1774527397092,-996.0245725,8.183e-05,2]
[418908245,1774527397121,-500.0,8.183e-05,2]
[418908246,1774527397153,-996.0245725,8.183e-05,2]
[418908247,1774527397182,-500.0,8.183e-05,2]
[418908248,1774527397211,-113.8205882,8.183e-05,2]
[418908249,1774527421288,300.0,8.182e-05,2]
[418908250,1774527436295,588.01,7.921e-05,2]
[418908251,1774527483115,300.0,8.182e-05,2]
[418908252,1774527483163,150.0,8.182e-05,2]
[418908253,1774527514008,500.0,8.182e-05,2]
[418908254,1774527514039,500.0,8.182e-05,2]
[418908255,1774527514069,602.95361536,8.182e-05,2]
[418908256,1774527514107,500.0,8.182e-05,2]
[418908257,1774527514141,500.0,8.182e-05,2]
[418908258,1774527514173,500.0,8.182e-05,2]
[418908259,1774527514211,500.0,8.182e-05,2]
[418908260,1774527514242,500.0,8.182e-05,2]
[418908261,1774527514283,500.0,8.182e-05,2]
[418908262,1774527514313,500.0,8.182e-05,2]
[418908263,1774527514348,500.0,8.182e-05,2]
[418908264,1774527514382,500.0,8.182e-05,2]
[418908265,1774527514412,500.0,8.182e-05,2]
[418908266,1774527514451,500.0,8.182e-05,2]
[418908267,1774527514482,500.0,8.182e-05,2]
[418908268,1774527514535,500.0,8.182e-05,2]
[418908269,1774527514588,500.0,8.182e-05,2]
[418908270,1774527514626,59.04638464,8.182e-05,2]
[418908271,1774527514652,440.95361536,8.182e-05,2]
[418908272,1774527514698,500.0,8.182e-05,2]
[418908273,1774527514730,315.60355341,8.182e-05,2]
[418908274,1774527514768,500.0,8.182e-05,2]
[418908275,1774527514802,500.0,8.182e-05,2]
[418908276,1774527514836,500.0,8.182e-05,2]
[418908277,1774527514876,500.0,8.182e-05,2]
[418908278,1774527514962,500.0,8.182e-05,2]
[418908279,1774527515005,500.0,8.182e-05,2]
[418908280,1774527515042,500.0,8.182e-05,2]
[418908281,1774527515075,500.0,8.182e-05,2]
[418908282,1774527515107,500.0,8.182e-05,2]
[418908283,1774527515146,500.0,8.182e-05,2]
[418908284,1774527515187,500.0,8.182e-05,2]
[418908285,1774527515222,500.0,8.182e-05,2]
[418908286,1774527515257,500.0,8.182e-05,2]
[418908287,1774527515298,500.0,8.182e-05,2]
[418908288,1774527515334,500.0,8.182e-05,2]
[418908289,1774527515367,500.0,8.182e-05,2]
[418908290,1774527515401,500.0,8.182e-05,2]
[418908291,1774527515435,243.45283123,8.182e-05,2]
[418908292,1774527519073,-256.54716877,8.182e-05,2]
[418908293,1774527519107,-500.0,8.182e-05,2]
[418908294,1774527519143,-500.0,8.182e-05,2]
[418908295,1774527519176,-500.0,8.182e-05,2]
[418908296,1774527519209,-500.0,8.182e-05,2]
[418908297,1774527519243,-500.0,8.182e-05,2]
[418908298,1774527519278,-500.0,8.182e-05,2]
[418908299,1774527519312,-500.0,8.182e-05,2]
[418908300,1774527519348,-500.0,8.182e-05,2]
[418908301,1774527519381,-500.0,8.182e-05,2]
[418908302,1774527519414,-104.48703026,8.182e-05,2]
[418908303,1774527519526,-277.94160194,8.182e-05,2]
[418908304,1774527519560,-500.0,8.182e-05,2]
[418908305,1774527611663,209.0,8.184e-05,3]
[418908306,1774527823096,3074.31,7.869e-05,2]
[418908307,1774527867282,-3306.19,7.952e-05,2]
[418908308,1774527867311,-250.0,7.969e-05,2]
[418908309,1774527867340,-436.43,7.986e-05,2]
[418908310,1774527867369,-231.0,7.986e-05,2]
[418908311,1774527867399,-300.0,8.179e-05,2]
[418908312,1774527867427,-300.0,8.179e-05,2]
[418908313,1774527867456,-52.77,8.179e-05,2]
[418908314,1774527873073,-500.0,8.179e-05,2]
[418908315,1774527873104,-500.0,8.179e-05,2]
[418908316,1774527873140,-646.6846705,8.179e-05,2]
[418908317,1774527873171,-500.0,8.179e-05,2]
[418908318,1774527873201,-307.19965628,8.179e-05,2]
[418908319,1774527873236,-646.6846705,8.179e-05,2]
[418908320,1774527873268,-500.0,8.179e-05,2]
[418908321,1774527873297,-500.0,8.179e-05,2]
[418908322,1774527873328,-500.0,8.179e-05,2]
[418908323,1774527873357,-298.87200544,8.179e-05,2]
[418908324,1774527876184,-201.12799456,8.179e-05,2]
[418908325,1774527876215,-500.0,8.179e-05,2]
[418908326,1774527876244,-500.0,8.179e-05,2]
[418908327,1774527876278,-646.6846705,8.179e-05,2]
[418908328,1774527876307,-500.0,8.179e-05,2]
[418908329,1774527876338,-500.0,8.179e-05,2]
[418908330,1774527876372,-646.6846705,8.179e-05,2]
[418908331,1774527876402,-200.0,8.179e-05,2]
[418908332,1774527876431,-500.0,8.179e-05,2]
[418908333,1774527876462,-469.20555332,8.179e-05,2]
[418908334,1774527876491,-172.60422224,8.179e-05,2]
[418908335,1774527879346,-327.39577776,8.179e-05,2]
[418908336,1774527879381,-646.6846705,8.179e-05,2]
[418908337,1774527879413,-241.89617215,8.179e-05,2]
[418908338,1774527879442,-500.0,8.179e-05,2]
[418908339,1774527879475,-646.6846705,8.179e-05,2]
[418908340,1774527879504,-500.0,8.179e-05,2]
[418908341,1774527879533,-500.0,8.179e-05,2]
[418908342,1774527879566,-646.6846705,8.179e-05,2]
[418908343,1774527879596,-281.56035534,8.179e-05,2]
[418908344,1774527879623,-500.0,8.179e-05,2]
[418908345,1774527880124,-646.6846705,8.179e-05,2]
[418908346,1774527880159,-646.6846705,8.179e-05,2]
[418908347,1774527880187,-500.0,8.179e-05,2]
[418908348,1774527880222,-646.6846705,8.179e-05,2]
[418908349,1774527880255,-646.6846705,8.179e-05,2]
[418908350,1774527880283,-550.0,8.179e-05,2]
[418908351,1774527880316,-646.6846705,8.179e-05,2]
[418908352,1774527880349,-646.6846705,8.179e-05,2]
[418908353,1774527880466,-646.6846705,8.179e-05,2]
[418908354,1774527880500,-646.6846705,8.179e-05,2]
[418908355,1774527880534,-646.6846705,8.179e-05,2]
[418908356,1774527880568,-646.6846705,8.179e-05,2]
[418908357,1774527880603,-646.6846705,8.179e-05,2]
[418908358,1774527880636,-646.6846705,8.179e-05,2]
[418908359,1774527880669,-646.6846705,8.179e-05,2]
[418908360,1774527880702,-299.7399425,8.179e-05,2]
[418908361,1774527880743,-346.944728,8.179e-05,2]
[418908362,1774527880777,-646.6846705,8.179e-05,2]
[418908363,1774527880813,-646.6846705,8.179e-05,2]
[418908364,1774527880850,-646.6846705,8.179e-05,2]
[418908365,1774527880884,-646.6846705,8.179e-05,2]
[418908366,1774527880919,-646.6846705,8.179e-05,2]
[418908367,1774527880956,-646.6846705,8.179e-05,2]
[418908368,1774527880993,-646.6846705,8.179e-05,2]
[418908369,1774527881045,-646.6846705,8.179e-05,2]
[418908370,1774527881081,-646.6846705,8.179e-05,2]
[418908371,1774527881116,-646.6846705,8.179e-05,2]
[418908372,1774527881152,-646.6846705,8.179e-05,2]
[418908373,1774527881187,-646.6846705,8.179e-05,2]
[418908374,1774527881222,-646.6846705,8.179e-05,2]
[418908375,1774527881254,-646.6846705,8.179e-05,2]
[418908376,1774527881287,-299.7399425,8.179e-05,2]
[418908377,1774527881327,-346.944728,8.179e-05,2]
[418908378,1774527881359,-646.6846705,8.179e-05,2]
[418908379,1774527881391,-646.6846705,8.179e-05,2]
[418908380,1774527881422,-646.6846705,8.179e-05,2]
[418908381,1774527881455,-646.6846705,8.179e-05,2]
[418908382,1774527881487,-646.6846705,8.179e-05,2]
[418908383,1774527881519,-646.6846705,8.179e-05,2]
[418908384,1774527881552,-646.6846705,8.179e-05,2]
[418908385,1774527881776,-646.6846705,8.179e-05,2]
[418908386,1774527881810,-646.6846705,8.179e-05,2]
[418908387,1774527881847,-646.6846705,8.179e-05,2]
[418908388,1774527881879,-646.6846705,8.179e-05,2]
[418908389,1774527881912,-646.6846705,8.179e-05,2]
[418908390,1774527881944,-646.6846705,8.179e-05,2]
[418908391,1774527881977,-646.6846705,8.179e-05,2]
[418908392,1774527882011,-299.7399425,8.179e-05,2]
[418908393,1774527882159,-346.944728,8.179e-05,2]
[418908394,1774527882193,-646.6846705,8.179e-05,2]
[418908395,1774527882227,-646.6846705,8.179e-05,2]
[418908396,1774527882260,-646.6846705,8.179e-05,2]
[418908397,1774527882447,-646.6846705,8.179e-05,2]
[418908398,1774527882481,-646.6846705,8.179e-05,2]
[418908399,1774527882515,-646.6846705,8.179e-05,2]
[418908400,1774527882547,-646.6846705,8.179e-05,2]
[418908401,1774527882575,-5.305157,8.179e-05,2]
[418908402,1774527884360,-241.924843,8.179e-05,2]
[418908403,1774527884390,-150.0,8.179e-05,2]
[418908404,1774527884420,-2088.564,8.18e-05,2]
[418908405,1774527884450,-165.738,8.18e-05,2]
[418908406,1774527884481,-1200.0,8.181e-05,2]
[418908407,1774527884511,-500.0,8.182e-05,2]
[418908408,1774527884541,-500.0,8.185e-05,2]
[418908409,1774527884571,-35.8006428,8.185e-05,2]
[418908410,1774527884607,-235.9550284,8.185e-05,2]
[418908411,1774527893073,218.80061703,8.179e-05,2]
[418908412,1774527901582,1200.0,8.185e-05,2]
[418908413,1774527906228,199.0,8.179e-05,3]
[418908415,1774527911328,8109.29932617,8.179e-05,2]
[418908416,1774527911353,10000.01,8.179e-05,2]
[418908417,1774527911376,10000.01,8.179e-05,2]
[418908418,1774527911400,10000.01,8.179e-05,2]
[418908419,1774527911424,10000.01,8.179e-05,2]
[418908420,1774527911448,10000.01,8.179e-05,2]
[418908421,1774527911472,10000.01,8.179e-05,2]
[418908422,1774527911495,10000.01,8.179e-05,2]
[418908423,1774527911518,10000.01,8.179e-05,2]
[418908424,1774527919793,-4790.15714142,8.179e-05,2]
[418908425,1774527921953,-10000.01,8.179e-05,2]
[418908426,1774527922212,-10000.01,8.179e-05,2]
[418908427,1774527922326,-10000.01,8.179e-05,2]
[418908428,1774527922427,-10000.01,8.179e-05,2]
[418908429,1774527922528,-10000.01,8.179e-05,2]
[418908430,1774527922651,-10000.01,8.179e-05,2]
[418908431,1774527922774,-10000.01,8.179e-05,2]
[418908432,1774528021266,300.0,8.178e-05,2]
[418908433,1774528023789,150.0,8.178e-05,2]
[418908434,1774528025877,500.0,8.178e-05,2]
[418908435,1774528026358,448.40365875,8.178e-05,2]
[418908436,1774528026452,500.0,8.178e-05,2]
[418908437,1774528026568,500.0,8.178e-05,2]
[418908438,1774528028196,500.0,8.178e-05,2]
[418908439,1774528047547,1100.0,7.8e-05,2]
[418908440,1774528049635,2300.0,7.9e-05,2]
[418908441,1774528110601,324.2,7.619e-05,2]
[418908442,1774528207478,1590.45,8.164e-05,14]
[418908443,1774528207895,189.0,7.619e-05,3]
[418908444,1774528231593,-691.60151792,8e-05,2]
[418908445,1774528231604,-1407.06176575,8e-05,2]
[418908446,1774528231651,-1401.33671633,8e-05,2]
[418908447,1774528231661,-231.0,8e-05,2]
[418908448,1774528231671,-300.0,8.162e-05,2]
[418908449,1774528231680,-1200.0,8.162e-05,2]
[418908450,1774528231689,-598.58411617,8.163e-05,2]
[418908451,1774528231699,-500.0,8.163e-05,2]
[418908452,1774528231708,-167.05035616,8.163e-05,2]
[418908453,1774528231717,-500.0,8.163e-05,2]
[418908454,1774528231726,-500.0,8.163e-05,2]
[418908455,1774528231735,-150.0,8.177e-05,2]
[418908456,1774528231745,-500.0,8.178e-05,2]
[418908457,1774528231754,-500.0,8.178e-05,2]
[418908458,1774528231764,-500.0,8.178e-05,2]
[418908459,1774528231773,-500.0,8.178e-05,2]
[418908460,1774528231782,-500.0,8.178e-05,2]
[418908461,1774528231792,-500.0,8.178e-05,2]
[418908462,1774528231801,-500.0,8.178e-05,2]
[418908463,1774528231810,-500.0,8.178e-05,2]
[418908464,1774528231819,-500.0,8.178e-05,2]
[418908465,1774528231828,-500.0,8.178e-05,2]
[418908466,1774528231837,-320.6474579,8.178e-05,2]
[418908467,1774528231847,-500.0,8.178e-05,2]
[418908468,1774528231856,-500.0,8.178e-05,2]
[418908469,1774528231866,-500.0,8.178e-05,2]
[418908470,1774528231874,-500.0,8.178e-05,2]
[418908471,1774528231884,-500.0,8.178e-05,2]
[418908472,1774528231893,-500.0,8.178e-05,2]
[418908473,1774528231902,-500.0,8.178e-05,2]
[418908474,1774528231912,-500.0,8.178e-05,2]
[418908475,1774528231921,-500.0,8.178e-05,2]
[418908476,1774528231930,-500.0,8.178e-05,2]
[418908477,1774528231939,-500.0,8.178e-05,2]
[418908478,1774528231948,-500.0,8.178e-05,2]
[418908479,1774528231958,-500.0,8.178e-05,2]
[418908480,1774528231967,-500.0,8.178e-05,2]
[418908481,1774528231976,-500.0,8.178e-05,2]
[418908482,1774528231985,-358.96294077,8.178e-05,2]
[418908483,1774528231995,-500.0,8.178e-05,2]
[418908485,1774528232005,-500.0,8.178e-05,2]
[418908487,1774528232014,-350.0,8.178e-05,2]
[418908490,1774528232023,-500.0,8.178e-05,2]
[418908492,1774528232032,-500.0,8.178e-05,2]
[418908494,1774528232041,-193.54401913,8.178e-05,2]
[418908496,1774528232050,-500.0,8.178e-05,2]
[418908498,1774528232059,-500.0,8.178e-05,2]
[418908500,1774528232067,-503.38846876,8.178e-05,2]
[418908502,1774528232076,-181.7051678,8.178e-05,2]
[418908504,1774528232086,-500.0,8.178e-05,2]
[418908506,1774528232095,-538.9318886,8.178e-05,2]
[418908508,1774528232104,-253.50670615,8.178e-05,2]
[418908510,1774528232113,-453.72056856,8.178e-05,2]
[418908512,1774528232122,-500.0,8.178e-05,2]
[418908514,1774528232132,-500.0,8.178e-05,2]
[418908516,1774528232141,-500.0,8.178e-05,2]
[418908518,1774528232150,-1860.36738936,8.179e-05,2]
[418908520,1774528232159,-1860.36738936,8.179e-05,2]
[418908522,1774528232167,-1860.36738936,8.179e-05,2]
[418908524,1774528232176,-1860.36738936,8.179e-05,2]
[418908526,1774528232185,-1860.36738936,8.179e-05,2]
[418908528,1774528232195,-1860.36738936,8.179e-05,2]
[418908530,1774528232205,-1860.36738936,8.179e-05,2]
[418908532,1774528232214,-1860.36738936,8.179e-05,2]
[418908534,1774528232223,-1860.36738936,8.179e-05,2]
[418908536,1774528232233,-1860.36738936,8.179e-05,2]
[418908538,1774528232243,-1860.36738936,8.179e-05,2]
[418908540,1774528232252,-1860.36738936,8.179e-05,2]
[418908541,1774528232261,-1860.36738936,8.179e-05,2]
[418908542,1774528232270,-1860.36738936,8.179e-05,2]
[418908543,1774528232279,-1860.36738936,8.179e-05,2]
[418908544,1774528232289,-1860.36738936,8.179e-05,2]
[418908545,1774528232299,-1860.36738936,8.179e-05,2]
[418908546,1774528232309,-1860.36738936,8.179e-05,2]
[418908547,1774528232318,-1860.36738936,8.179e-05,2]
[418908548,1774528232328,-1860.36738936,8.179e-05,2]
[418908549,1774528232338,-1860.36738936,8.179e-05,2]
[418908550,1774528232347,-1860.36738936,8.179e-05,2]
[418908551,1774528232356,-1860.36738936,8.179e-05,2]
[418908552,1774528232365,-1860.36738936,8.179e-05,2]
[418908553,1774528232374,-1860.36738936,8.179e-05,2]
[418908554,1774528232384,-1860.36738936,8.179e-05,2]
[418908555,1774528232395,-1860.36738936,8.179e-05,2]
[418908556,1774528232404,-1860.36738936,8.179e-05,2]
[418908557,1774528232413,-1860.36738936,8.179e-05,2]
[418908558,1774528232423,-1860.36738936,8.179e-05,2]
[418908559,1774528232431,-1860.36738936,8.179e-05,2]
[418908560,1774528232441,-1860.36738936,8.179e-05,2]
[418908561,1774528232450,-1860.36738936,8.179e-05,2]
[418908562,1774528232459,-1860.36738936,8.179e-05,2]
[418908563,1774528232468,-1114617.74700235,8.179e-05,2]
[418908564,1774528232502,-118132.01082451,8.179e-05,2]
[418908565,1774528232516,-122338.63910765,8.179e-05,2]
[418908566,1774528232525,-713.17,8.179e-05,2]
[418908567,1774528232535,-31290.5152405,8.179e-05,2]
[418908568,1774528232544,-30886.59752869,8.186e-05,2]
[418908569,1774528232555,-29845.6574452,8.186e-05,2]
[418908570,1774528232571,-2666.33773602,8.186e-05,2]
[418908574,1774528237724,-729.92575465,8.079e-05,2]
[418908575,1774528238009,-418585.07384535,8.079e-05,2]
[418908576,1774528238018,-150.99,8.186e-05,2]
[418908577,1774528238027,-779.58,8.186e-05,2]
[418908578,1774528238036,-9999.99,8.186e-05,2]
[418908579,1774528238046,-3852.09,8.186e-05,2]
[418908580,1774528238055,-150.99,8.186e-05,2]
[418908581,1774528238064,-8492.94,8.187e-05,2]
[418908583,1774528238074,-500.0,8.219e-05,2]
[418908585,1774528238084,-500.0,8.219e-05,2]
[418908587,1774528238093,-500.0,8.219e-05,2]
[418908589,1774528238102,-500.0,8.219e-05,2]
[418908591,1774528238111,-262.98085582,8.219e-05,2]
[418908593,1774528238120,-500.0,8.219e-05,2]
[418908596,1774528238130,-1886.85,8.254e-05,2]
[418908598,1774528238139,-500.0,8.282e-05,2]
[418908599,1774528238148,-713.17,8.453e-05,2]
[418908601,1774528238157,-500.0,8.493e-05,2]
[418908602,1774528238166,-10776.67,8.703e-05,2]
[418908603,1774528238176,-782.48019824,8.711e-05,2]
[418908605,1774528238185,-713.17,8.727e-05,2]
[418908606,1774528238194,-500.0,8.743e-05,2]
[418908607,1774528238203,-500.0,8.743e-05,2]
[418908608,1774528238212,-500.0,8.743e-05,2]
[418908609,1774528238222,-1500000.0,8.761e-05,2]
[418908610,1774528238231,-200.0,8.766e-05,2]
[418908611,1774528238240,-5845.63753736,8.766e-05,2]
[418908612,1774528238249,-388.32585968,8.767e-05,2]
[418908613,1774528238258,-250.0,8.8e-05,2]
[418908614,1774528238268,-250.0,8.8e-05,2]
[418908615,1774528238277,-4700.0,8.9e-05,3]
[418908616,1774528238286,-150.0,8.904e-05,2]
[418908617,1774528238295,-150.0,8.904e-05,2]
[418908618,1774528238304,-200.0,8.904e-05,2]
[418908619,1774528238314,-500.0,8.904e-05,2]
[418908620,1774528238324,-500.0,8.904e-05,2]
[418908621,1774528238333,-500.0,8.904e-05,2]
[418908622,1774528238342,-500.0,8.904e-05,2]
[418908623,1774528238352,-500.0,8.904e-05,2]
[418908624,1774528238361,-500.0,8.904e-05,2]
[418908625,1774528238370,-500.0,8.904e-05,2]
[418908626,1774528238379,-500.0,8.904e-05,2]
[418908627,1774528238389,-500.0,8.904e-05,2]
[418908628,1774528238398,-487.16585343,8.904e-05,2]
[418908629,1774528238408,-420.0,8.978e-05,2]
[418908630,1774528238417,-1680.0,8.978e-05,2]
[418908631,1774528238427,-255.0,8.995e-05,2]
[418908632,1774528238437,-250.0,8.997e-05,2]
[418908633,1774528238446,-5900.0,9e-05,3]
[418908634,1774528238457,-713.17,9.001e-05,2]
[418908635,1774528238466,-150.0,9.1e-05,2]
[418908636,1774528238476,-32997.7747,9.103e-05,2]
[418908637,1774528238485,-338708.9063025,9.215e-05,2]
[418908638,1774528238496,-6981.8576767,9.215e-05,2]
[418908639,1774528238506,-151.0,9.224e-05,2]
[418908640,1774528238515,-713.17,9.275e-05,2]
[418908641,1774528238525,-500.0,9.291e-05,2]
[418908642,1774528238534,-500.0,9.291e-05,2]
[418908643,1774528238544,-500.0,9.325e-05,2]
[418908644,1774528238554,-500.0,9.325e-05,2]
[418908645,1774528238563,-500.0,9.325e-05,2]
[418908646,1774528238572,-500.0,9.325e-05,2]
[418908647,1774528238582,-500.0,9.325e-05,2]
[418908648,1774528238591,-336.31253698,9.325e-05,2]
[418908649,1774528238600,-500.0,9.325e-05,2]
[418908650,1774528238609,-500.0,9.325e-05,2]
[418908651,1774528238619,-500.0,9.325e-05,2]
[418908652,1774528238628,-500.0,9.325e-05,2]
[418908653,1774528238638,-500.0,9.325e-05,2]
[418908654,1774528238647,-500.0,9.325e-05,2]
[418908655,1774528238656,-500.0,9.325e-05,2]
[418908656,1774528238666,-500.0,9.325e-05,2]
[418908657,1774528238675,-500.0,9.325e-05,2]
[418908658,1774528238685,-500.0,9.325e-05,2]
[418908659,1774528238695,-500.0,9.325e-05,2]
[418908660,1774528238704,-500.0,9.38e-05,2]
[418908661,1774528238713,-500.0,9.435e-05,2]
[418908662,1774528238722,-75576.1725069,9.446e-05,2]
[418908663,1774528238732,-1557.8630215,9.446e-05,2]
[418908664,1774528238744,-500.0,9.49e-05,2]
[418908665,1774528238753,-500.0,9.545e-05,2]
[418908666,1774528238763,-713.22173486,9.548e-05,2]
[418908667,1774528238772,-500.0,9.6e-05,2]
[418908668,1774528238783,-500.0,9.655e-05,2]
[418908669,1774528238793,-189.0,9.699e-05,3]
[418908670,1774528238803,-500.0,9.71e-05,2]
[418908671,1774528238812,-500.0,9.765e-05,2]
[418908672,1774528238822,-2351.0,9.876e-05,2]
[418908673,1774528238833,-587.0,9.876e-05,2]
[418908674,1774528238842,-433.0,9.894e-05,2]
[418908675,1774528238852,-979.16666667,9.946e-05,2]
[418908676,1774528238862,-160.0,9.946e-05,2]
[418908677,1774528238871,-297.34082082,0.0001,2]
[418908678,1774528238881,-243.0548411,0.0001,2]
[418908679,1774528238891,-164.10642001,0.0001,2]
[418908680,1774528238900,-191.9607937,0.0001,2]
[418908681,1774528238910,-186.99097126,0.0001,2]
[418908682,1774528238920,-761.25746925,0.0001,2]
[418908683,1774528238930,-232.44995365,0.0001,2]
[418908684,1774528238939,-500.0,0.0001,2]
[418908685,1774528238950,-151.0,0.0001,2]
[418908686,1774528238960,-500.0,0.0001,2]
[418908687,1774528238969,-151.0,0.0001,2]
[418908688,1774528238980,-151.0,0.0001,2]
[418908689,1774528238991,-500.0,0.0001,2]
[418908690,1774528239001,-151.0,0.0001,2]
[418908691,1774528239011,-151.0,0.0001,2]
[418908692,1774528239020,-500.0,0.0001,2]
[418908693,1774528239030,-151.0,0.0001,2]
[418908694,1774528239042,-151.0,0.0001,2]
[418908695,1774528239051,-500.0,0.0001,2]
[418908696,1774528239061,-151.0,0.0001,2]
[418908697,1774528239070,-151.0,0.0001,2]
[418908698,1774528239080,-500.0,0.0001,2]
[418908699,1774528239090,-151.0,0.0001,2]
[418908700,1774528239100,-151.0,0.0001,2]
[418908701,1774528239111,-500.0,0.0001,2]
[418908702,1774528239121,-151.0,0.0001,2]
[418908703,1774528239343,-151.0,0.0001,2]
[418908704,1774528239352,-500.0,0.0001,2]
[418908705,1774528239362,-151.0,0.0001,2]
[418908706,1774528239371,-151.0,0.0001,2]
[418908707,1774528239380,-500.0,0.0001,2]
[418908708,1774528239390,-151.0,0.0001,2]
[418908709,1774528239399,-151.0,0.0001,2]
[418908710,1774528239408,-500.0,0.0001,2]
[418908711,1774528239417,-151.0,0.0001,2]
[418908712,1774528239427,-151.0,0.0001,2]
[418908713,1774528239437,-500.0,0.0001,2]
[418908714,1774528239446,-151.0,0.0001,2]
[418908715,1774528239456,-151.0,0.0001,2]
[418908716,1774528239465,-500.0,0.0001,2]
[418908717,1774528239476,-151.0,0.0001,2]
[418908718,1774528239486,-151.0,0.0001,2]
[418908719,1774528239495,-151.0,0.0001,2]
[418908720,1774528239505,-151.0,0.0001,2]
[418908721,1774528239514,-151.0,0.0001,2]
[418908722,1774528239524,-151.0,0.0001,2]
[418908723,1774528239534,-151.0,0.0001,2]
[418908724,1774528239545,-151.0,0.0001,2]
[418908725,1774528239556,-151.0,0.0001,2]
[418908726,1774528239565,-151.0,0.0001,2]
[418908727,1774528239575,-151.0,0.0001,2]
[418908728,1774528239585,-1871.888003,0.0001,2]
[418908729,1774528239594,-185.5041011,0.0001,2]
[418908730,1774528239607,-502.06723984,0.0001,2]
[418908731,1774528239617,-502.06723984,0.0001,2]
[418908732,1774528239626,-203.7739763,0.0001,7]
[418908733,1774528239636,-5533.0,0.000102,5]
[418908734,1774528239646,-1000.0,0.00010356,2]
[418908735,1774528239656,-305.66096444,0.000104,7]
[418908736,1774528239665,-250.0,0.00010571,2]
[418908737,1774528239674,-197.2439,0.000106,2]
[418908738,1774528239684,-3292.0,0.00010863,2]
[418908739,1774528239693,-823.0,0.00010863,2]
[418908740,1774528239702,-736.0,0.00010884,2]
[418908741,1774528239711,-7238.31531537,0.000109,2]
[418908742,1774528239720,-7238.3153153,0.000109,2]
[418908743,1774528239730,-7238.3153153,0.000109,2]
[418908744,1774528239739,-150.0,0.00010959,2]
[418908745,1774528239750,-2297.16,0.00010959,2]
[418908746,1774528239760,-171.05973472,0.00010959,2]
[418908747,1774528239769,-4367.77635585,0.00011,2]
[418908748,1774528239779,-8697.06678659,0.00011099,2]
[418908749,1774528239788,-8697.06678659,0.00011099,2]
[418908750,1774528239797,-8697.06678659,0.00011099,2]
[418908751,1774528239806,-8697.06678659,0.00011099,2]
[418908752,1774528239815,-49679.26237277,0.00011099,2]
[418908753,1774528239824,-49679.26237272,0.00011099,2]
[418908754,1774528239834,-49679.26237272,0.00011099,2]
[418908755,1774528239843,-49679.26237272,0.00011099,2]
[418908756,1774528239852,-1037.0,0.00011424,5]
[418908757,1774528239862,-7238.3153153,0.00011431,2]
[418908758,1774528239871,-8697.06678659,0.00011554,2]
[418908759,1774528239880,-49679.26237272,0.00011559,2]
[418908760,1774528239889,-151.0,0.00011559,2]
[418908761,1774528239898,-151.0,0.00011559,2]
[418908762,1774528239907,-151.0,0.00011559,2]
[418908763,1774528239917,-153.137935,0.00011559,2]
[418908764,1774528239926,-689.196346,0.00011559,2]
[418908765,1774528239935,-689.196346,0.00011559,2]
[418908766,1774528239944,-689.196346,0.00011559,2]
[418908767,1774528239953,-689.196346,0.00011559,2]
[418908768,1774528239963,-151.0,0.00011559,2]
[418908769,1774528239972,-840.541605,0.00011559,2]
[418908770,1774528239981,-840.541605,0.00011559,2]
[418908771,1774528239990,-840.541605,0.00011559,2]
[418908772,1774528240011,-840.541605,0.00011559,2]
[418908773,1774528240021,-189.0,0.0001178,3]
[418908774,1774528240030,-1152.0,0.00011949,2]
[418908775,1774528240040,-4609.0,0.00011949,2]
[418908776,1774528240050,-1252.0,0.00011971,2]
[418908777,1774528240060,-761.25746923,0.00011993,2]